Cogmind - Beta 16 @@@ ROGUE MODE // 2026.01.10 @ 02:46:16 Player: Rocket Result: Destroyed by D-53 Grenadier with Mini Grenade Launcher Performance ------------- Evolutions (1) 500 Regions Visited (4) 800 Robots Destroyed (48) 240 Value Destroyed (900) 900 Prototype IDs (0) 0 Alien Tech Used (0) 0 Bonus (0) 0 TOTAL SCORE: 2440 Bonus ------- None Cogmind --------- Core Integrity 0/400 Matter 219/300 Energy 70/100 System Corruption 0% Temperature Cool (0) Movement Core (400) Ox7 Location -9/Mines Parts ------- > --- POWER (1) -------- (None) > --- PROPULSION (2) --- (None) > --- UTILITY (3) ------ Large Storage Unit Visual Processing Unit Propulsion Shielding > --- WEAPON (3) ------- Grenade Launcher > --- INVENTORY (15) --- Light Ion Engine Wheel Compact Wheel High-capacity Battery (250) Large Matter Pod (150) Large Matter Pod (150) Propulsion Shielding Field Recycling Unit (2) Grenade Launcher Peak State ------------ > --- POWER ------------ Light Ion Engine > --- PROPULSION ------- Wheel Wheel > --- UTILITY ---------- Large Storage Unit Visual Processing Unit Field Recycling Unit > --- WEAPON ----------- Light Assault Rifle Heavy Assault Rifle Heavy Assault Rifle > --- INVENTORY -------- Ion Engine Light Ion Engine Wheel Compact Wheel High-capacity Battery Large Matter Pod Large Matter Pod Propulsion Shielding Propulsion Shielding EM Shotgun Assault Rifle Assault Rifle Heavy Assault Rifle Grenade Launcher Grenade Launcher [Rating: 14] Favorites ----------- Power Ion Engine Engine Ion Engine Propulsion Wheel Wheel Wheel Utility Visual Processing Unit Device Field Recycling Unit Storage Large Storage Unit Processor Visual Processing Unit Protection Propulsion Shielding Weapon Heavy Assault Rifle Energy Gun Medium Laser Ballistic Gun Heavy Assault Rifle Launcher Grenade Launcher Build | -11 -10 -10 -9 -9 ------- Run | Yrd Mat Min Mat Min Slots Evolved 2 | . . . 2 . Power . | . . . . . Propulsion . | . . . . . Utility 1 | . . . 1 . Weapon 1 | . . . 1 . Parts Attached 36 | 5 10 4 13 4 Power 6 | . 1 2 3 . Engine 6 | . 1 2 3 . Core . | . . . . . Reactor . | . . . . . Propulsion 9 | 2 2 2 3 . Treads . | . . . . . Leg . | . . . . . Wheel 9 | 2 2 2 3 . Hover . | . . . . . Flight . | . . . . . Utility 7 | 1 4 . 1 1 Device 1 | . . . 1 . Storage 3 | 1 2 . . . Processor 2 | . 2 . . . Hackware . | . . . . . Protection 1 | . . . . 1 Artifact . | . . . . . Weapon 14 | 2 3 . 6 3 Energy Gun 3 | 2 1 . . . Energy Cannon . | . . . . . Ballistic Gun 9 | . 2 . 5 2 Ballistic Cannon . | . . . . . Launcher 2 | . . . 1 1 Special Weapon . | . . . . . Impact Weapon . | . . . . . Slashing Weapon . | . . . . . Piercing Weapon . | . . . . . Special Melee Weapon . | . . . . . Unidentified Prototypes . | . . . . . Parts Lost 18 | . 3 . 4 11 Power 2 | . . . 1 1 Propulsion 7 | . 2 . 1 4 Utility . | . . . . . Weapon 9 | . 1 . 2 6 Highest Loss Streak 11 | . 2 . 2 11 To Critical Strikes . | . . . . . Average Backups 11 | 1 8 12 14 13 Power 1 | 1 1 2 2 1 Propulsion . | . . . 2 3 Utility 3 | . 2 5 5 5 Weapon 4 | . 4 4 5 4 Tool/Special . | . . . . . Unused Backups 18 | . 10 . 2 6 Power 3 | . 2 . . 1 Propulsion 2 | . . . 1 1 Utility 8 | . 4 . . 4 Weapon 5 | . 4 . 1 . Tool/Special . | . . . . . Average Slot Usage (%) 94 | . 90 100 96 90 Engine 10 | . 10 14 9 11 Wheel 24 | . 24 28 22 18 Device 3 | . . . 9 . Storage 14 | . 16 14 11 11 Processor 10 | . 9 14 11 11 Energy Gun 4 | . 3 14 . . Ballistic Gun 25 | . 23 14 31 27 Peak Build Rating 14 | 5 10 10 14 13 Average Rating 10 | 4 9 10 13 11 On Entrance 7 | . 5 10 10 14 Avg Prop Armor Cover (%) . | . . . . . Naked Turns . | . . . . . Heaviest Build 41 | 8 30 30 41 34 Greatest Support 26 | 20 26 26 20 20 Greatest Overweight (x) 3 | . 2 1 2 3 Average Overweight (x) . | . . 1 1 1 Largest Inventory Capacity 15 | 8 15 15 15 15 Average Capacity 12 | 7 9 15 15 15 Most Carried 15 | 2 10 15 15 15 Average Carried 11 | 1 8 12 14 13 Final Capacity 15 | 8 15 15 15 15 Final Carried 15 | 2 10 15 15 9 Class Distribution -------------------- 49% | Mutant 37% | Scavenger-Skirmisher 10% | Scavenger-Mutant Dominant Class ---------------- Mutant | -10/Materials Scavenger-Mutant | -10/Mines Scavenger-Skirmisher | -9/Materials Scavenger-Tank | -9/Mines Resources | -11 -10 -10 -9 -9 ----------- Run | Yrd Mat Min Mat Min Matter Collected 1378 | 177 543 128 530 . Remotely . | . . . . . Salvage Created 1372 | . 599 98 675 . Parts 111 | . 36 14 61 . Haulers Intercepted . | . . . . . Recyclers Shooed 2 | . 1 . 1 . Parts Field Recycled 41 | . . . 41 . Retrieved Matter 147 | . . . 147 . Parts Self-Destructed . | . . . . . Prevented . | . . . . . Parts Restored . | . . . . . Kills | -11 -10 -10 -9 -9 ------- Run | Yrd Mat Min Mat Min Combat Hostiles Destroyed 31 | . 10 6 15 . Guns 26 | . 10 6 10 . AOE 5 | . . . 5 . Classes Destroyed 8 | . 5 2 1 . Worker 3 | . 1 1 1 . Builder 8 | . 2 . 6 . Tunneler 1 | . . 1 . . Recycler 3 | . 1 . 2 . Watcher 2 | . 2 . . . Swarmer 14 | . . 6 8 . Grunt 14 | . 10 . 4 . Sentry 3 | . . . 3 . Best Kill Streak 12 | . 6 5 12 . Combat Bots Only 8 | . 4 3 8 . Max Kills in Single Turn 3 | . 1 2 3 . Gunslinging 1 | . . 1 . . Exploded 3 | . . . 3 . Melee . | . . . . . Uniques/NPCs Destroyed . | . . . . . Combat | -11 -10 -10 -9 -9 -------- Run | Yrd Mat Min Mat Min Hostile Shots Fired 205 | . 75 28 76 26 Missed 63 | . 30 7 25 1 Hits 142 | . 45 21 51 25 Projectile 142 | . 45 21 51 25 AOE 26 | . . . . 26 Critical Strikes 4 | . 2 . 2 . Damage Taken 2356 | . 594 169 567 1026 Core 613 | . 163 48 70 332 Absorbed by Shields . | . . . . . Redirected to Shielding 39 | . . . . 39 Core Remaining (%) 57 | 100 . 15 . . Volleys Fired 115 | . 49 15 45 6 Largest 3 | . 2 2 3 3 Hottest 73 | . 73 73 73 66 Shots Fired 259 | . 94 30 123 12 Gun 255 | . 94 30 120 11 Cannon . | . . . . . Launcher 4 | . . . 3 1 Special . | . . . . . Kinetic 235 | . 89 15 120 11 Thermal 20 | . 5 15 . . Explosive 4 | . . . 3 1 Electromagnetic . | . . . . . Robot Hit Streak 7 | . 7 5 7 6 Robot Miss Streak 7 | . 3 4 7 4 Penetration Max . | . . . . . Secondary Targets 3 | . . 2 1 . Max Gunslinging Chain 1 | . . 1 1 . Shots Hit Robots 137 | . 58 13 60 6 Core Hits 73 | . 27 9 34 3 Critical Kills 1 | . 1 . . . Critical Parts Destroyed . | . . . . . Critical Strikes 1 | . 1 . . . Destroy 1 | . 1 . . . Melee Attacks . | . . . . . Impact . | . . . . . Slashing . | . . . . . Piercing . | . . . . . Sneak Attacks . | . . . . . Combat Hostiles . | . . . . . Follow-up Attacks . | . . . . . Damage Inflicted 2229 | . 882 175 1077 95 Guns 1911 | . 882 175 778 76 Cannons . | . . . . . Explosions 318 | . . . 299 19 Melee . | . . . . . Ramming . | . . . . . Kinetic 1773 | . 857 62 778 76 Thermal 138 | . 25 113 . . Explosive 318 | . . . 299 19 Electromagnetic . | . . . . . Impact . | . . . . . Slashing . | . . . . . Piercing . | . . . . . Highest Corruption 2 | . 2 2 . . Average Corruption 2 | . 2 2 . . Corruption Purged . | . . . . . Corruption Blocked . | . . . . . Effects 5 | . 1 4 . . Matter Fused 1 | . . 1 . . Heat Flow Errors 1 | . 1 . . . Energy Discharges 1 | . . 1 . . Data Loss (minor) 2 | . . 2 . . Overload Shots . | . . . . . Overflow Damage . | . . . . . Projectiles . | . . . . . Explosions . | . . . . . Melee . | . . . . . Knockbacks . | . . . . . Impact . | . . . . . Kinetic . | . . . . . Secondary . | . . . . . Self-Inflicted Damage 35 | . . . 5 30 Shots 2 | . . . 1 1 Rammed . | . . . . . Targets Rammed . | . . . . . Kicked . | . . . . . Crushed . | . . . . . Highest Temperature 249 | . 249 84 116 . Average Temperature 31 | . 31 29 32 . Received Heat Transfer 495 | . 369 . 126 . Siege Activations . | . . . . . Martial Activations . | . . . . . Shielding Activations . | . . . . . Robots Disrupted . | . . . . . Combat Hostiles . | . . . . . Robots Corrupted . | . . . . . Combat Hostiles . | . . . . . Parts Fried . | . . . . . Impact Corruptions . | . . . . . Robots Melted . | . . . . . Combat Hostiles . | . . . . . Parts Melted 1 | . . 1 . . Heat Transferred 407 | . 74 333 . . Parts Sabotaged . | . . . . . Parts Stolen . | . . . . . Parts Stripped . | . . . . . Power Chain Reactions . | . . . . . Alert | -11 -10 -10 -9 -9 ------- Run | Yrd Mat Min Mat Min Maximum Alert Level 1 | . . . 1 . Low Security (%) 93 | 100 100 100 81 100 Level 1 6 | . . . 18 . Level 2 . | . . . . . Level 3 . | . . . . . Level 4 . | . . . . . Level 5 . | . . . . . High Security . | . . . . . Max Security . | . . . . . Peak Influence 290 | . 156 98 290 102 Initial 102 | . . 33 31 102 Average 81 | . 84 68 95 69 Influence Increases 923 | . 337 150 436 . Destroy 0b10 Robot/C 620 | . 200 120 300 . Destroy 0b10 Robot/NC 85 | . 30 10 45 . Destroy Leader 144 | . 54 20 70 . Successful Hack 9 | . 7 . 2 . Disable Machine 15 | . 15 . . . Destroy Structure 20 | . 1 . 19 . Lose Combat Pursuer 30 | . 30 . . . Influence Decreases 923 | . 251 153 257 262 Entered New Map 265 | . . 53 52 160 Time Decay 506 | . 221 100 165 20 Lost Part 152 | . 30 . 40 82 Squads Dispatched 6 | . 3 . 3 . Investigation 3 | . 2 . 1 . Extermination . | . . . . . Reinforcement 3 | . 1 . 2 . Assault . | . . . . . Garrison . | . . . . . Intercept . | . . . . . Searches Triggered . | . . . . . Construction Impeded . | . . . . . Haulers Reinforced . | . . . . . Active Scanning Responses . | . . . . . Cargo Convoy Interrupts . | . . . . . Stealth | -11 -10 -10 -9 -9 --------- Run | Yrd Mat Min Mat Min Distress Signals 3 | . 1 . 2 . Communications Jammed . | . . . . . Distress Signals . | . . . . . Times Spotted 49 | . 20 6 21 2 Peak Tracking Total 6 | . 6 3 6 2 Tactical Retreats 1 | . 1 . . . Traps | -11 -10 -10 -9 -9 ------- Run | Yrd Mat Min Mat Min Traps Triggered 3 | . 2 . 1 . Indirectly . | . . . . . Trap Hack Attempts . | . . . . . Triggered . | . . . . . Disarmed . | . . . . . Reprogrammed . | . . . . . Reused . | . . . . . Traps Extracted . | . . . . . Installed . | . . . . . Triggered . | . . . . . Machines | -11 -10 -10 -9 -9 ---------- Run | Yrd Mat Min Mat Min Machines Disabled 2 | . 1 . 1 . Max in Single Turn 1 | . 1 . 1 . Machines Repaired . | . . . . . Machines Dismantled . | . . . . . Machines Sabotaged . | . . . . . Overloaded Fab Kills . | . . . . . Hacking | -11 -10 -10 -9 -9 --------- Run | Yrd Mat Min Mat Min Machines Accessed 4 | . 2 . 2 . Terminals 3 | . 2 . 1 . Fabricators . | . . . . . Repair Stations . | . . . . . Recycling Units . | . . . . . Scanalyzers 1 | . . . 1 . Garrison Access . | . . . . . Total Hacks 13 | . 9 . 4 . Successful 3 | . 1 . 2 . Failed 8 | . 7 . 1 . Catastrophic 1 | . 1 . . . Database Lockouts 2 | . 1 . 1 . Manual 14 | . 14 . . . Terminals 10 | . 9 . 1 . Fabricators . | . . . . . Repair Stations . | . . . . . Recycling Units . | . . . . . Scanalyzers 3 | . . . 3 . Garrison Access . | . . . . . Terminal Hacks 1 | . 1 . . . Part Schematic 1 | . 1 . . . Fabricator Hacks . | . . . . . Repair Station Hacks . | . . . . . Recycling Unit Hacks . | . . . . . Scanalyzer 2 | . . . 2 . Retrieve Study 2 | . . . 2 . Garrison Access Hacks . | . . . . . Unauthorized Hacks . | . . . . . Terminals . | . . . . . Fabricators . | . . . . . Repair Stations . | . . . . . Recycling Units . | . . . . . Scanalyzers . | . . . . . Garrison Access . | . . . . . Data Cores Recovered . | . . . . . Used . | . . . . . Hacking Detections 3 | . 3 . . . Full Trace Events 2 | . 2 . . . Feedback Events . | . . . . . Feedback Blocked . | . . . . . Robot Schematics Acquired . | . . . . . Robots Built . | . . . . . Authchips . | . . . . . Time . | . . . . . Total Robot Build Rating . | . . . . . Part Schematics Acquired 1 | . 1 . . . Parts Built . | . . . . . Authchips . | . . . . . Time . | . . . . . Total Part Build Rating . | . . . . . Part Studies Acquired 2 | . . . 2 . Parts Repaired . | . . . . . Time . | . . . . . Parts Recycled . | . . . . . Recycled Matter . | . . . . . Retrieved Matter . | . . . . . Retrieved Components . | . . . . . Parts Scanalyzed . | . . . . . Part Schematics Acquired . | . . . . . Parts Damaged . | . . . . . Bothacking | -11 -10 -10 -9 -9 ------------ Run | Yrd Mat Min Mat Min Used RIF Installer . | . . . . . Robots Hacked . | . . . . . Non-combat . | . . . . . Combat . | . . . . . Robot Hacks Applied . | . . . . . Relay Couplers Released . | . . . . . Fabnet Peak Effective % . | . . . . . Robots Rewired . | . . . . . Allies Hacked . | . . . . . Hacks Repelled . | . . . . . Allies | -11 -10 -10 -9 -9 -------- Run | Yrd Mat Min Mat Min Total Allies . | . . . . . Largest Group . | . . . . . Highest-Rated Group . | . . . . . Highest-Rated Ally . | . . . . . Total Orders . | . . . . . Ally Attacks . | . . . . . Total Damage . | . . . . . Kills . | . . . . . Allies Corrupted . | . . . . . Allies Melted . | . . . . . Intel | -11 -10 -10 -9 -9 ------- Run | Yrd Mat Min Mat Min Active Infowar (turns) 752 | . 75 206 418 53 Optics 752 | . 75 206 418 53 Robot Analysis Total . | . . . . . Derelict Logs Recovered . | . . . . . Drone Launches . | . . . . . Drone Recoveries . | . . . . . Exploration | -11 -10 -10 -9 -9 ------------- Run | Yrd Mat Min Mat Min Turns Passed 1275 | 55 543 206 418 53 Spaces Moved 877 | 57 377 148 260 35 Core 1 | 1 . . . . Treads . | . . . . . Legs . | . . . . . Wheels 876 | 56 377 148 260 35 Hover . | . . . . . Flight . | . . . . . Fastest Speed 50 | 50 80 95 85 85 Average Speed 94 | 79 91 104 95 89 Slowest Speed 115 | 80 115 105 100 115 Overloaded Moves . | . . . . . Propulsion Burnouts . | . . . . . Robots Hopped . | . . . . . Potential Cave-ins . | . . . . . Cave-ins Triggered . | . . . . . Exploration Rate (%) 29 | 4 66 34 22 22 Regions Visited 4 Branch Regions 2 Pre-discovered Areas . | . . . . . Known Exits Taken . | . . . . . Unknown Exits Taken 4 | 1 1 1 1 . Scrap Searched . | . . . . . Spaces Dug . | . . . . . Terrain Destroyed 17 | . . . 17 . Melee . | . . . . . Projectile . | . . . . . AOE 17 | . . . 17 . Terrain Rammed . | . . . . . Walls Destroyed . | . . . . . Machines Disabled . | . . . . . Actions | -11 -10 -10 -9 -9 --------- Run | Yrd Mat Min Mat Min Total 1106 | 63 485 167 343 48 Wait 26 | . 16 . 10 . Move 873 | 56 376 147 259 35 Hop . | . . . . . Pick Up 31 | 2 20 1 8 . Fast Attach 12 | 5 6 . 1 . Attach 12 | . 1 . 5 6 Detach . | . . . . . Swap 15 | . 3 4 7 1 Drop 22 | . 14 . 8 . Fire 115 | . 49 15 45 6 Melee . | . . . . . Ram . | . . . . . Kick . | . . . . . Crush . | . . . . . Escape Stasis . | . . . . . Rewire . | . . . . . Trap . | . . . . . Miscellaneous . | . . . . . Route ------- -11/Scrapyard -10/Materials (discovered 2 exits: [*Min x2]) -10/Mines -9/Materials -9/Mines History --------- Turn | Location | Event 21 | -11/Scrapyard | Discovered new exit (range 15) 56 | -11/Scrapyard | Entered Materials 322 | -10/Materials | Central database locked down 335 | -10/Materials | Build established: Mutant 403 | -10/Materials | Discovered new exit (range 12) 481 | -10/Materials | Core integrity fell below 50% 572 | -10/Materials | Discovered new exit (range 9) 599 | -10/Materials | Entered Mines 717 | -10/Mines | Found a hidden stash of uninstalled traps 746 | -10/Mines | Discovered new exit (range 10) 753 | -10/Mines | Core integrity fell below 20% 805 | -10/Mines | Entered Materials 805 | -9/Materials | Evolved 2 slots: Utility x1, Weapon x1 1027 | -9/Materials | Central database locked down 1086 | -9/Materials | Build established: Scavenger-Skirmisher 1098 | -9/Materials | Discovered new exit (range 8) 1169 | -9/Materials | Destroyed 8 combat bots 1223 | -9/Materials | Entered Mines 1227 | -9/Mines | Assembled infested the area 1269 | -9/Mines | Core integrity fell below 50% 1273 | -9/Mines | Core integrity fell below 20% 1276 | -9/Mines | Destroyed by D-53 Grenadier with Mini Grenade Launcher Last Messages --------------- GOAL=ESCAPE 01227_ ALERT: Infestation in the mines, dispatching Demolisher response squad. 01247_ C-45 Heavy ARC bursts open, deploying its payload. 01247_ D-53 Grenadier unfolds itself. 01254_ Hvy. Assault Rifle destroyed. 01257_ Wheel+ destroyed. 01259_ Assault Rifle destroyed. 01262_ Wheel+ destroyed. 01264_ Assault Rifle destroyed. 01264_ Wheel+ destroyed. 01265_ The unstable cave ceiling collapses. 01269_ U-05 Engineer lays Concrete. 01271_ U-05 Engineer builds a Wall. 01272_ Ion Engine destroyed. 01272_ U-05 Engineer destroyed. 01272_ Lgt. Assault Rifle destroyed. 01274_ Hvy. Assault Rifle destroyed. 01274_ Wheel+ destroyed. Map ----- +----------------------------------------------------+ | ?????????????????????????????????????????????????? | | ?????????????????????????????????????????????????? | | ?????????????????????????????????????????????????? | | ?????????????????????????????????????????????????? | | ?????????????????????????????????????????????????? | | ?????????????????????????????????????????????????? | | ?????????????????????????????????????????????????? | | ?????????????????????????????????????????????????? | | ???????????????????????#?????????????????????????? | | ????????????????????? ##???????????????????????? | | ?????????????????? ???????????????????????? | | ???????????????? ???????????????????????? | | ????????????????? ????#??????????????????? | | ?????????????????? "?? #??????????????????? | | ?????????????????? """ ##?????????????????? | | ??????????????????? """ ##????????????????? | | ??????????????????? """ #????????????????? | | ??????????????????? #????????????????? | | ????????????????????% ?????????????????? | | ???????????????????? ??????????????????? | | ?????????????????????# = ???????????????????? | | ?????????????????????## = #???????????????????? | | ????????????????????## ##??????????????????? | | ????????????????????# d #??????????????????? | | ????????????????????# d ##?????????????????? | | ????????????????????# @ #######???????????? | | ????????????????????# #???????????? | | ????????????????????# #???????????? | | ????????????????????## #???????????? | | ?????????????????????# ##??????????? | | ?????????????????????# t ##?????????? | | ?????????????????????# ##????????? | | ?????????????????? ########?? | | ??????????????? #?? | | ????????????? ## t #?? | | ????????????# #?## ########## ####### ### | | ????????????## ##???# ?????????# ##?????# | | ?????????????###??????#$?????????# #??????##### | | ??????????????????????#a?????????# #??????????# | | ??????????????????????# ?????????## ##??????????# | | ??????????????????????# ??????????####???????????# | | ??????????????????????#??????????????????????????# | | ?????????????????????????????????????????????????? | | ?????????????????????????????????????????????????? | | ?????????????????????????????????????????????????? | | ?????????????????????????????????????????????????? | | ?????????????????????????????????????????????????? | | ?????????????????????????????????????????????????? | | ?????????????????????????????????????????????????? | | ?????????????????????????????????????????????????? | +----------------------------------------------------+ Best States ------------- Heat Dissipation 28 Energy Generation 12 Energy Capacity 265 Matter Stores 300 Matter Capacity 300 Sight Range 18 Terrain Scan Density 10 Propulsion Shielding 33 Evasion (%) 44 Targeting Accuracy 5 Item Schematics ----------------- Cargo Storage Unit | -10/Materials | Hacked Robot Schematics ------------------ None Fabricated ------------ Nothing Repaired ---------- Nothing Studied --------- Com. Wheel | -9/Materials | Hacked Wheel | -9/Materials | Hacked Alien Tech Used ----------------- None Achievements -------------- None Challenges ------------ None Game ------ Seed EfficiencyFieldAnalyzer Manual? 0 Play Time 00:14:48 Cumulative 59.1 hours Start 2026.01.10 @ 02:09:20 End 2026.01.10 @ 02:46:16 Sessions 1 Manual Loads 0 Difficulty Rogue Special Mode None Game No. 84 Rogue 84 Adventurer 0 Explorer 0 Win Type - Total 0 Types 0/0/0/0/0/0/0/0/0/0 Lore% 13 Gallery% 30 Achievement% 22 Wizard Run 0 Options --------- Layout 1 ASCII 0 Keyboard 0 Movement Mouse Keybinds 0 Fullscreen 2 Font 24/Smallcaps Map View 50x35 Zoom Use 5% Tactical HUD 1 Map Filters NONE Filters NONE Steam 1 RUN: 71b88388-341d-4160-a529-ec1b693baf31